fUSD/lending_fUSD_20240520
["ID","MTS","AMOUNT","RATE_DAILY","PERIOD"]
[327539031,1716197646492,183.03,0.00024329,30]
[327539033,1716197825066,150.5,0.0001958,15]
[327539034,1716197825567,150.5,0.0001957,15]
[327539035,1716197826292,150.5,0.0001956,15]
[327540305,1716198064732,177.0,0.0001958,15]
[327540318,1716198632372,-155.0,8.984e-05,2]
[327540319,1716198632383,-528.38,8.985e-05,2]
[327540320,1716198632393,-1205.0611715,9.698e-05,2]
[327540321,1716198632402,-168.11,0.00010872,2]
[327540322,1716198632413,-3358.86353384,0.00010896,2]
[327540323,1716198632426,-4666.9444403,0.00010896,2]
[327540324,1716198632438,-2501.06837137,0.00010896,2]
[327540325,1716198632447,-209.83434863,0.00010897,2]
[327540326,1716198632470,-218.64582976,0.00010897,2]
[327540327,1716198632480,-3211.34,0.00010898,2]
[327540328,1716198632491,-640.0,0.00010902,2]
[327540329,1716198632502,-1477.44,0.00011091,2]
[327540330,1716198632513,-250.0,0.00011214,2]
[327540331,1716198632523,-528.38,0.00011249,2]
[327540332,1716198632534,-150.0,0.00011277,2]
[327540333,1716198632543,-157.37,0.00011291,2]
[327540334,1716198632553,-54.371142,0.00011291,2]
[327540335,1716198632565,-445.618858,0.00011291,2]
[327540336,1716198632575,-150.99,0.00011291,2]
[327540337,1716198632586,-150.0,0.00011384,2]
[327540338,1716198632597,-28894.65,0.00011386,2]
[327540339,1716198632608,-157.37,0.00011389,2]
[327540340,1716198632620,-161.03,0.00011457,2]
[327540341,1716198632632,-161.03,0.00011466,2]
[327540342,1716198632643,-170.38,0.00011466,2]
[327540343,1716198632653,-150.99,0.00011466,2]
[327540344,1716198632663,-5339.5,0.0001147,2]
[327540345,1716198632672,-161.03,0.00011476,2]
[327540346,1716198632682,-150.99,0.00011476,2]
[327540347,1716198632691,-191.34,0.00011483,2]
[327540348,1716198632702,-161.03,0.00011485,2]
[327540349,1716198632712,-157.37,0.00011487,2]
[327540350,1716198632722,-161.03,0.00011495,2]
[327540351,1716198632731,-250.0,0.00011502,2]
[327540352,1716198632740,-161.03,0.00011505,2]
[327540353,1716198632750,-161.03,0.00011514,2]
[327540354,1716198632760,-6499.30129779,0.00011533,2]
[327540355,1716198632772,-1803.20156379,0.00011533,2]
[327540356,1716198632795,-47.70713842,0.00011533,2]
[327540357,1716198632805,-805.23600637,0.00011533,2]
[327540358,1716198632816,-4231.16730011,0.00011533,2]
[327540371,1716198639107,-12035.01424228,0.00011533,2]
[327540372,1716198639119,-323.97031072,0.00011533,2]
[327540373,1716198639132,-6504.61214052,0.00011533,2]
[327540374,1716198639142,-163.46,0.00011545,2]
[327540375,1716198639154,-163.88,0.00011571,2]
[327540376,1716198639165,-157.37,0.00011585,2]
[327540377,1716198639175,-87.64274713,0.000116,2]
[327540378,1716198639242,-289.47602467,0.000116,2]
[327540379,1716198639254,-319.8,0.000116,2]
[327540380,1716198639266,-892.59435569,0.000116,2]
[327540381,1716198639276,-19999.99,0.000116,2]
[327540382,1716198639286,-14622.51,0.000116,2]
[327540383,1716198639296,-4417.99,0.000116,2]
[327540384,1716198639306,-200.0,0.00011641,2]
[327540385,1716198639317,-367.05,0.00011641,2]
[327540386,1716198639327,-157.37,0.00011683,2]
[327540387,1716198639340,-1871.29,0.00011701,3]
[327540388,1716198639350,-360.0,0.00011701,2]
[327540389,1716198639359,-157.37,0.00011781,2]
[327540390,1716198639370,-157.37,0.00011879,2]
[327540391,1716198639380,-5075.05562792,0.00012003,2]
[327540392,1716198639391,-716.84059979,0.00012003,2]
[327540393,1716198639403,-3225.58077229,0.00012003,2]
[327540394,1716198639415,-420.8720041,0.00012265,2]
[327540395,1716198639447,-219.1279959,0.00012265,2]
[327540396,1716198639457,-161.03,0.00012462,2]
[327540397,1716198639467,-161.03,0.00012475,2]
[327540398,1716198639476,-161.03,0.00012487,2]
[327540399,1716198639486,-161.03,0.00012499,2]
[327540400,1716198639496,-161.03,0.00012512,2]
[327540401,1716198639505,-161.03,0.00012524,2]
[327540402,1716198639515,-2165.2578,0.000128,2]
[327540403,1716198639525,-1564.1179518,0.00012868,2]
[327540404,1716198639534,-3467.1061,0.00012898,2]
[327540405,1716198639544,-395.4755,0.000129,2]
[327540406,1716198639554,-41999.8593,0.000129,2]
[327540407,1716198639564,-474.6405,0.000129,2]
[327540408,1716198639573,-1000.0,0.000129,2]
[327540409,1716198639583,-10000.0,0.000129,2]
[327540410,1716198639592,-1815.6652159,0.000129,2]
[327540411,1716198639602,-158.1095261,0.000129,2]
[327540412,1716198639611,-158.43787398,0.000129,2]
[327540413,1716198639621,-267.67820455,0.000129,2]
[327540414,1716198639630,-348.954301,0.000129,2]
[327540415,1716198639640,-364.18618547,0.000129,2]
[327540416,1716198639649,-3454.24037439,0.00012986,2]
[327540417,1716198639659,-826.3715483,0.0001299,2]
[327540418,1716198639669,-157.052018,0.00012997,2]
[327540419,1716198639679,-157.052018,0.00012997,2]
[327540420,1716198639688,-157.052018,0.00012997,2]
[327540421,1716198639698,-157.052018,0.00012997,2]
[327540422,1716198639708,-157.052018,0.00012997,2]
[327540423,1716198639718,-157.052018,0.00012997,2]
[327540424,1716198639728,-155.28825132,0.00012998,2]
[327540425,1716198639737,-174.75949925,0.00012998,2]
[327540426,1716198639747,-1272.41491777,0.00012998,2]
[327540427,1716198639757,-155.39472073,0.00012998,2]
[327540428,1716198639767,-157.052018,0.00012998,2]
[327540429,1716198639776,-157.052018,0.00012998,2]
[327540430,1716198639786,-157.052018,0.00012998,2]
[327540431,1716198639796,-157.052018,0.00012998,2]
[327540432,1716198639805,-157.052018,0.00012998,2]
[327540433,1716198639815,-157.052018,0.00012998,2]
[327540434,1716198639824,-157.052018,0.00012998,2]
[327540435,1716198639834,-157.052018,0.00012998,2]
[327540436,1716198639844,-157.052018,0.00012998,2]
[327540437,1716198639854,-157.052018,0.00012998,2]
[327540438,1716198639864,-157.052018,0.00012998,2]
[327540439,1716198639873,-157.052018,0.00012998,2]
[327540440,1716198639883,-2000.27992103,0.00012999,2]
[327540441,1716198639893,-194.97199603,0.00012999,2]
[327540442,1716198639902,-263.02958027,0.00012999,2]
[327540443,1716198639912,-322.11807366,0.00012999,2]
[327540444,1716198639923,-157.70718433,0.00012999,2]
[327540445,1716198639932,-208.57383812,0.00012999,2]
[327540446,1716198639942,-1064.0957077,0.00012999,2]
[327540447,1716198639951,-46867.7243074,0.00012999,2]
[327540448,1716198639961,-2585.5512885,0.00012999,2]
[327540449,1716198639970,-6749.9659875,0.00012999,2]
[327540450,1716198639979,-6327.8415383,0.00012999,2]
[327540451,1716198639988,-152.29486864,0.00012999,2]
[327540452,1716198639997,-485046.67351174,0.00013,2]
[327540453,1716198640006,-812563.37252757,0.00013,2]
[327540454,1716198640015,-3371474.17668556,0.00013,2]
[327540455,1716198640024,-457.74988423,0.00013,2]
[327540456,1716198640033,-155.0,0.00013,2]
[327540457,1716198640042,-152192.78436633,0.00013,2]
[327540458,1716198640053,-56274.37526486,0.00013,2]
[327540466,1716198640645,-504.36232548,0.00013,2]
[327540467,1716198640883,-2352.18060644,0.00013,2]
[327540468,1716198640894,-1212.14956,0.00013,2]
[327540469,1716198640907,-16435.95214544,0.00013,2]
[327540470,1716198641041,-6252.37650919,0.00013,2]
[327540471,1716198641053,-1337.66,0.00013,2]
[327540472,1716198641064,-34815.82358329,0.00013,2]
[327540473,1716198641270,-1848.21879468,0.00013,2]
[327540474,1716198641281,-671.80019193,0.00013,2]
[327540482,1716198641442,-439.54636968,0.00013,2]
[327540484,1716198641453,-590.46,0.00013,2]
[327540534,1716198643690,-798.07178077,0.00012999,2]
[327540535,1716198643700,-240389.9209578,0.00013,2]
[327540536,1716198643712,-2481215.54214102,0.00013,2]
[327540537,1716198643723,-353.20175428,0.00013,2]
[327540538,1716198643777,-1681.39680402,0.00013,2]
[327540539,1716198643791,-1901.09200912,0.00013,2]
[327540540,1716198643862,-10820.52681283,0.00013,2]
[327540541,1716198643982,-404.03630381,0.00013,2]
[327540542,1716198643995,-1442.71534123,0.00013,2]
[327540564,1716198648262,-199.96781807,0.000129,2]
[327540565,1716198648272,-1501.16857062,0.000129,2]
[327540566,1716198648283,-2027.32083963,0.000129,2]
[327540567,1716198648292,-428.48017839,0.00012999,2]
[327540568,1716198648303,-155.94924465,0.00012999,2]
[327540569,1716198648313,-598.55383558,0.00012999,2]
[327540570,1716198648323,-3490.69590175,0.00013,2]
[327540607,1716199832598,-428.48017839,0.00010645,2]
[327540608,1716199832607,-397.81849827,0.00010645,2]
[327540609,1716199832734,-11.94964635,0.00010645,2]
[327540610,1716199832743,-241.97277153,0.00010646,2]
[327540611,1716199832764,-60.69759129,0.00010646,2]
[327540612,1716199832774,-598.77240871,0.00010647,2]
[327540613,1716199832785,-674.00246075,0.00010647,2]
[327540614,1716199832796,-10526.87634551,0.00010647,2]
[327540615,1716199832810,-1790.38168817,0.00010657,2]
[327540616,1716199832820,-169.3469853,0.00010667,2]
[327540617,1716199832831,-483.34,0.00010768,2]
[327540618,1716199832840,-169.3469852,0.00010785,2]
[327540619,1716199832849,-169.3469852,0.00010902,2]
[327540620,1716199832859,-169.3469852,0.0001102,2]
[327540621,1716199832868,-169.3469852,0.00011137,2]
[327540622,1716199832877,-169.3469852,0.00011255,2]
[327540623,1716199832886,-2140.22,0.00011258,2]
[327540624,1716199832895,-150.0,0.00011266,2]
[327540625,1716199832905,-384.0,0.00011274,2]
[327540626,1716199832915,-1200.0,0.00011293,3]
[327540627,1716199832925,-169.3469852,0.00011372,2]
[327540628,1716199832935,-161.07,0.0001139,2]
[327540629,1716199832944,-250.0,0.00011434,2]
[327540630,1716199832953,-169.3469852,0.0001149,2]
[327540631,1716199832963,-169.3469852,0.00011607,2]
[327540632,1716199832972,-169.3469852,0.00011725,2]
[327540633,1716199832982,-169.3469852,0.00011842,2]
[327540634,1716199832991,-169.3469852,0.0001196,2]
[327540635,1716199833002,-169.3469852,0.00012077,2]
[327540636,1716199833011,-169.3469852,0.00012195,2]
[327540637,1716199833021,-169.3469852,0.00012312,2]
[327540638,1716199833031,-23900.0,0.00012361,2]
[327540641,1716199833040,-169.3469852,0.0001243,2]
[327540644,1716199833050,-169.3469852,0.00012547,2]
[327540646,1716199833059,-1000.0,0.000126,2]
[327540649,1716199833070,-1564.1179518,0.00012658,2]
[327540651,1716199833080,-169.3469852,0.00012665,2]
[327540653,1716199833090,-384.0,0.00012683,2]
[327540655,1716199833099,-169.3469852,0.00012782,2]
[327540657,1716199833109,-250.0,0.00012786,2]
[327540659,1716199833118,-163.88,0.00012801,2]
[327540661,1716199833128,-616.0,0.00012887,2]
[327540663,1716199833137,-41999.8593,0.0001289,2]
[327540665,1716199833147,-474.6405,0.0001289,2]
[327540667,1716199833156,-4251.0869,0.0001289,2]
[327540669,1716199833166,-227.93390928,0.00012897,2]
[327540671,1716199833175,-697.24439534,0.00012897,2]
[327540673,1716199833185,-7333.1807,0.000129,2]
[327540675,1716199833196,-2165.2578,0.000129,2]
[327540677,1716199833205,-158.1095261,0.000129,2]
[327540678,1716199833214,-10000.0,0.000129,2]
[327540681,1716199833224,-1000.0,0.000129,2]
[327540683,1716199833233,-169.3469852,0.000129,2]
[327540684,1716199833243,-158.43787398,0.000129,2]
[327540685,1716199833252,-1815.6652159,0.000129,2]
[327540686,1716199833261,-1176.16313675,0.000129,2]
[327540687,1716199833271,-182.09309274,0.000129,2]
[327540688,1716199833280,-182.09309273,0.000129,2]
[327540689,1716199833289,-199.96781807,0.000129,2]
[327540690,1716199833299,-267.67820455,0.000129,2]
[327540691,1716199833308,-3454.24037439,0.00012986,2]
[327540692,1716199833318,-534.10085754,0.00012989,2]
[327540693,1716199833327,-256948.45775992,0.0001299,2]
[327540694,1716199833339,-341.48088377,0.0001299,2]
[327540695,1716199833374,-1800.0,0.0001299,2]
[327540696,1716199833385,-9858.62962008,0.0001299,2]
[327540697,1716199833397,-690.20000005,0.0001299,2]
[327540698,1716199833424,-833.79793316,0.0001299,2]
[327540699,1716199833437,-318.86689986,0.0001299,2]
[327540700,1716199833450,-505.38615579,0.0001299,2]
[327540701,1716199833461,-17675.999997,0.0001299,2]
[327540702,1716199833472,-10242.28956299,0.0001299,2]
[327540703,1716199833483,-328.54733044,0.0001299,2]
[327540704,1716199833495,-11653.0382456,0.0001299,2]
[327540705,1716199833506,-12430.51139992,0.0001299,2]
[327540706,1716199833518,-1290.90309334,0.0001299,2]
[327540707,1716199833529,-454.25461509,0.0001299,2]
[327540708,1716199833540,-1015.83173565,0.0001299,2]
[327540709,1716199833552,-2075.96937837,0.0001299,2]
[327540710,1716199833580,-12977.32426403,0.0001299,2]
[327540735,1716199837779,-21083.64695268,0.0001299,2]
[327540736,1716199837997,-111526.7539327,0.0001299,2]
[327540737,1716199838007,-157.052018,0.00012997,2]
[327540738,1716199838017,-157.052018,0.00012997,2]
[327540739,1716199838029,-157.052018,0.00012997,2]
[327540740,1716199838039,-157.052018,0.00012997,2]
[327540741,1716199838049,-157.052018,0.00012997,2]
[327540742,1716199838060,-157.052018,0.00012997,2]
[327540743,1716199838071,-157.052018,0.00012997,2]
[327540744,1716199838080,-157.052018,0.00012997,2]
[327540745,1716199838090,-157.052018,0.00012997,2]
[327540746,1716199838099,-157.052018,0.00012997,2]
[327540747,1716199838108,-157.052018,0.00012997,2]
[327540748,1716199838117,-208.57383812,0.00012998,2]
[327540749,1716199838126,-157.70718433,0.00012998,2]
[327540750,1716199838135,-194.97199603,0.00012998,2]
[327540751,1716199838144,-322.11807366,0.00012998,2]
[327540752,1716199838153,-155.39472073,0.00012998,2]
[327540753,1716199838163,-263.02958027,0.00012998,2]
[327540754,1716199838172,-2000.27992103,0.00012998,2]
[327540755,1716199838181,-155.28825132,0.00012998,2]
[327540756,1716199838191,-235.39242257,0.00012998,2]
[327540757,1716199838202,-4945.64932598,0.00012998,2]
[327540759,1716199838211,-523.09941013,0.00012998,2]
[327540760,1716199838221,-157.052018,0.00012998,2]
[327540761,1716199838231,-157.052018,0.00012998,2]
[327540762,1716199838241,-157.052018,0.00012998,2]
[327540764,1716199838251,-157.052018,0.00012998,2]
[327540765,1716199838260,-157.052018,0.00012998,2]
[327540766,1716199838270,-157.052018,0.00012998,2]
[327540767,1716199838280,-157.052018,0.00012998,2]
[327540768,1716199838289,-157.052018,0.00012998,2]
[327540769,1716199838299,-157.052018,0.00012998,2]
[327540770,1716199838308,-1000.0,0.00012999,2]
[327540771,1716199838317,-291.42987355,0.00012999,2]
[327540772,1716199838327,-155.0,0.00012999,2]
[327540773,1716199838336,-499.99,0.00012999,2]
[327540774,1716199838350,-150.01,0.00012999,2]
[327540775,1716199838360,-5349.13,0.00012999,2]
[327540776,1716199838370,-6949.31,0.00012999,2]
[327540777,1716199838380,-1219.27633174,0.00012999,2]
[327540778,1716199838390,-152.29486864,0.00012999,2]
[327540779,1716199838399,-506330.9989383,0.00013,2]
[327540780,1716199838408,-4316063.09633237,0.00013,2]
[327540781,1716199838422,-56274.37526486,0.00013,2]
[327540796,1716199840177,-848.46,0.00013,2]
[327540797,1716199841871,-18242.38516158,0.00013,2]
[327540815,1716199842814,-914.4572488,0.00012999,2]
[327540816,1716199842826,-491.13188648,0.00013,2]
[327540817,1716199842838,-1115.88327722,0.00013,2]
[327540818,1716199842918,-5003.48713317,0.00013,2]
[327540819,1716199843031,-769.61865015,0.00013,2]
[327540820,1716199843043,-1381.05676272,0.00013,2]
[327540821,1716199843055,-7062.5,0.00013,2]
[327540822,1716199843140,-2850.0,0.00013,2]
[327540823,1716199843377,-30331.98475843,0.00013,2]
[327540825,1716199843389,-3494.989044,0.00013,2]
[327540827,1716199843401,-837.85090234,0.00013,2]
[327540828,1716199843413,-7434.63056509,0.00013,2]
[327540829,1716199843425,-491.02705519,0.00013,2]
[327540830,1716199843436,-9964.63341854,0.00013,2]
[327540839,1716199847269,-986.33493121,0.00012999,2]
[327540840,1716199847279,-428.48017839,0.00012999,2]
[327540841,1716199847288,-85036.94602739,0.00013,2]
[327540842,1716199847373,-6000.02408429,0.00013,2]
[327540843,1716199847481,-9466.57076297,0.00013,2]
[327540844,1716199847493,-6207.4,0.00013,2]
[327540845,1716199847504,-6699.6,0.00013,2]
[327540875,1716200851828,-155.0,9.728e-05,2]
[327540876,1716200851860,402.29831785,9.727e-05,2]
[327540877,1716200894045,-474.65,9.739e-05,2]
[327540878,1716200894068,-428.48017839,0.0001,2]
[327540879,1716200894094,-168.42,0.00011536,2]
[327540880,1716200894119,-2928.44982161,0.00011544,2]
[327540881,1716200895092,-4000.0,0.00011544,2]
[327540882,1716200895605,-3598.4265239,0.00011544,2]
[327540883,1716200895631,-230.4,0.00011544,2]
[327540884,1716200895653,-171.1734761,0.00011545,2]
[327540885,1716200896141,-1454.7465239,0.00011545,2]
[327540886,1716200896165,-2545.2534761,0.00011545,2]
[327540887,1716200908612,-21354.7465239,0.00011545,2]
[327540888,1716200908634,-250.0,0.00011595,2]
[327540889,1716200908655,-150.0,0.000116,2]
[327540890,1716200908676,-150.99,0.00011601,2]
[327540891,1716200908697,-166.88,0.00011635,2]
[327540892,1716200908719,-250.0,0.00011642,2]
[327540893,1716200908740,-6949.31,0.00011642,2]
[327540894,1716200908762,-769.6,0.0001165,2]
[327540895,1716200908784,-5349.13,0.0001165,2]
[327540896,1716200917555,346.28428884,9.727e-05,2]
[327540897,1716200918984,7518.67413038,9.727e-05,2]
[327540898,1716200926226,20219.84291804,9.727e-05,2]
[327540899,1716200928696,362.16409873,9.727e-05,2]
[327540900,1716200928853,173.51087384,9.727e-05,2]
[327540901,1716200929655,155.0,9.727e-05,2]
[327540902,1716200931181,289.22433229,9.727e-05,2]
[327540903,1716200931319,19730.16017374,9.727e-05,2]
[327540904,1716200931500,-474.65,0.00012003,2]
[327540905,1716200931524,-1005.36,0.00012403,2]
[327540906,1716200931545,-499.99,0.00012403,2]
[327540907,1716200931567,-1005.36,0.00012407,2]
[327540908,1716200931590,-1005.36,0.0001241,2]
[327540909,1716200931615,-1005.36,0.00012413,2]
[327540910,1716200931638,-1005.36,0.00012416,2]
[327540911,1716200931660,-1005.36,0.0001242,2]
[327540912,1716200931681,-1005.36,0.00012423,2]
[327540913,1716200931703,-1005.36,0.00012426,2]
[327540914,1716200931725,-1005.36,0.0001243,2]
[327540915,1716200931747,-1005.36,0.00012433,2]
[327540916,1716200931769,-1005.36,0.00012436,2]
[327540917,1716200931791,-1005.36,0.00012439,2]
[327540918,1716200931814,-1005.36,0.00012443,2]
[327540919,1716200931837,-1005.36,0.00012446,2]
[327540920,1716200931860,-1005.36,0.00012449,2]
[327540921,1716200931885,-1005.36,0.00012452,2]
[327540922,1716200931908,-1005.36,0.00012456,2]
[327540923,1716200931931,-1005.36,0.00012459,2]
[327540924,1716200931953,-1005.36,0.00012462,2]
[327540925,1716200931976,-1005.36,0.00012465,2]
[327540926,1716200931998,-395.4755,0.0001289,2]
[327540927,1716200932020,-22797.402,0.0001289,2]
[327540928,1716200932042,-3467.1061,0.0001289,2]
[327540929,1716200932064,-594.9189,0.0001289,2]
[327540930,1716200932084,-1240.9733,0.0001289,2]
[327540931,1716200932109,-2298.91,0.00012893,2]
[327540932,1716200932134,-7500.0,0.000129,2]
[327540933,1716200932159,-784.10875784,0.000129,2]
[327540934,1716200932189,-1856.76001381,0.0001298,2]
[327540935,1716200932240,-230.4,0.00012987,2]
[327540936,1716200932293,-235.39242257,0.00012988,2]
[327540937,1716200932354,-4945.64932598,0.00012988,2]
[327540938,1716200932377,-523.09941013,0.00012988,2]
[327540939,1716200932400,-812.53302492,0.00012989,2]
[327540940,1716200932422,-171.25975998,0.0001299,2]
[327540941,1716200932444,-171.25975998,0.0001299,2]
[327540942,1716200932466,-171.25975998,0.0001299,2]
[327540943,1716200932487,-428.48017839,0.00012991,2]
[327540944,1716200932509,-155.0,0.00012998,2]
[327540945,1716200932530,-304.35258554,0.00012998,2]
[327540946,1716200932551,-10526.87634551,0.00012998,2]
[327540947,1716200932575,-656.71541629,0.00012998,2]
[327540948,1716200932598,-237.25590478,0.00012998,2]
[327540949,1716200932623,-157.052018,0.00012998,2]
[327540950,1716200932646,-157.052018,0.00012998,2]
[327540951,1716200932669,-157.052018,0.00012998,2]
[327540952,1716200932693,-157.052018,0.00012998,2]
[327540953,1716200932716,-157.052018,0.00012998,2]
[327540954,1716200932740,-157.052018,0.00012998,2]
[327540955,1716200932764,-157.052018,0.00012998,2]
[327540956,1716200932788,-157.052018,0.00012998,2]
[327540957,1716200932810,-157.052018,0.00012998,2]
[327540958,1716200932834,-157.052018,0.00012998,2]
[327540959,1716200933058,-157.052018,0.00012998,2]
[327540960,1716200933083,-157.052018,0.00012998,2]
[327540961,1716200933110,-157.052018,0.00012998,2]
[327540962,1716200933140,-157.052018,0.00012998,2]
[327540963,1716200933161,-1000.0,0.00012999,2]
[327540964,1716200933183,-1000.0,0.00012999,2]
[327540965,1716200933205,-409.27029601,0.00012999,2]
[327540966,1716200933226,-150.01,0.00012999,2]
[327540967,1716200933247,-1320.88269272,0.00012999,2]
[327540968,1716200933272,-518963.18762654,0.00013,2]
[327540969,1716200933296,-551981.80283582,0.00013,2]
[327540970,1716200933319,-1307222.95699748,0.00013,2]
[327540971,1716200933686,292.35374371,9.727e-05,2]
[327540972,1716200934763,3150.34793844,9.727e-05,2]
[327540973,1716200934783,4000.0,9.727e-05,2]
[327540974,1716200934803,368.32619194,9.727e-05,2]
[327540975,1716200934924,1360.30965247,9.727e-05,2]
[327540976,1716200935500,346.28428884,9.727e-05,2]
[327540977,1716200936694,1925.07986675,9.727e-05,2]
[327540978,1716200936715,4000.0,9.727e-05,2]
[327540979,1716200936736,4000.0,9.727e-05,2]
[327541000,1716201031987,-638.61311553,9.241e-05,2]
[327541001,1716201031999,-317.18491495,9.241e-05,2]
[327541002,1716201032009,-150.0,9.726e-05,2]
[327541003,1716201032018,-5962.71640839,9.727e-05,2]
[327541004,1716201032031,-442911.1440693,9.727e-05,2]
[327541005,1716201032043,-9076.35471616,9.727e-05,2]
[327541006,1716201033665,-1192.33623907,9.727e-05,2]
[327541009,1716201033945,-4799.4,9.727e-05,2]
[327541013,1716201033957,-3410.32320927,9.727e-05,2]
[327541016,1716201033968,-3316.6212,9.727e-05,2]
[327541018,1716201034069,-8038.61441017,9.727e-05,2]
[327541019,1716201034080,-2001.76069057,9.727e-05,2]
[327541020,1716201034091,-1280.56006859,9.727e-05,2]
[327541021,1716201034102,-393.9,9.727e-05,2]
[327541054,1716201038756,-55296.8847957,9.727e-05,2]
[327541055,1716201038767,-10010.09637539,9.727e-05,2]
[327541056,1716201038777,-155.41627465,9.727e-05,2]
[327541057,1716201038788,-173.51087384,9.727e-05,2]
[327541058,1716201038797,-1655.0916804,9.727e-05,2]
[327541059,1716201038808,-18075.06849334,9.727e-05,2]
[327541060,1716201038818,-362.16409873,9.727e-05,2]
[327541061,1716201038828,-292.35374371,9.727e-05,2]
[327541062,1716201038839,-289.22433229,9.727e-05,2]
[327541063,1716201038848,-1360.30965247,9.727e-05,2]
[327541064,1716201038859,-235.05023723,9.727e-05,2]
[327541065,1716201038869,-7516.436336,9.727e-05,2]
[327541066,1716201038878,-179.93208816,9.727e-05,2]
[327541067,1716201038890,-150.0,9.727e-05,2]
[327541068,1716201038900,-150.0,9.727e-05,2]
[327541069,1716201038910,-150.0,9.727e-05,2]
[327541070,1716201038920,-150.0,9.727e-05,2]
[327541071,1716201038931,-150.0,9.727e-05,2]
[327541073,1716201038940,-150.0,9.727e-05,2]
[327541075,1716201038949,-150.0,9.727e-05,2]
[327541077,1716201038959,-150.0,9.727e-05,2]
[327541079,1716201038968,-150.0,9.727e-05,2]
[327541081,1716201038977,-150.0,9.727e-05,2]
[327541083,1716201038987,-150.0,9.727e-05,2]
[327541085,1716201038996,-153.67097977,9.727e-05,2]
[327541087,1716201039006,-945.5461607,9.727e-05,2]
[327541089,1716201039015,-428.48017839,0.0001,2]
[327541091,1716201039025,-210.0,0.00010699,2]
[327541093,1716201039034,-314.44,0.00010959,2]
[327541095,1716201039043,-861.76,0.00012805,2]
[327541097,1716201039052,-1564.36069654,0.00012839,2]
[327541099,1716201039061,-205.14051837,0.00012889,2]
[327541101,1716201039071,-1664.35978126,0.000129,2]
[327541103,1716201039080,-284.81348804,0.000129,2]
[327541105,1716201039089,-522.7391719,0.000129,2]
[327541108,1716201039099,-205.1405183,0.00012991,2]
[327541110,1716201039108,-1439.96557167,0.00012999,2]
[327541111,1716201039117,-880.58846181,0.00012999,2]
[327541113,1716201039127,-505.0,0.00013,2]
[327541115,1716201039136,-467066.86886389,0.00013,2]
[327541116,1716201039146,-3424861.85383869,0.00013,2]
[327541117,1716201039158,-457.74988423,0.00013,2]
[327541118,1716201039168,-155.0,0.00013,2]
[327541119,1716201039178,-409.74863585,0.00013,2]
[327541120,1716201039187,-155.0,0.00013,2]
[327541121,1716201039199,-549.0409506,0.00013,2]
[327541122,1716201039208,-180.19382766,0.00013,2]
[327541123,1716201039217,-298.91571102,0.00013,2]
[327541124,1716201039226,-2000.0,0.00013,2]
[327541125,1716201039238,-200.0,0.00013,2]
[327541126,1716201039247,-500.0,0.00013,2]
[327541127,1716201039257,-2000.0,0.00013,2]
[327541128,1716201039266,-200.0,0.00013,2]
[327541129,1716201039275,-500.0,0.00013,2]
[327541130,1716201039284,-500.0,0.00013,2]
[327541131,1716201039295,-2000.0,0.00013,2]
[327541132,1716201039304,-200.0,0.00013,2]
[327541133,1716201039313,-1628.84965,0.00013,2]
[327541134,1716201039323,-500.0,0.00013,2]
[327541135,1716201039335,-200.0,0.00013,2]
[327541136,1716201039344,-300.23,0.00013005,2]
[327541137,1716201039353,-2000.0,0.0001313,2]
[327541138,1716201039363,-200.0,0.0001313,2]
[327541139,1716201039373,-2000.0,0.0001313,2]
[327541140,1716201039382,-200.0,0.0001313,2]
[327541141,1716201039392,-2000.0,0.0001313,2]
[327541142,1716201039403,-200.0,0.0001313,2]
[327541143,1716201039413,-200.0,0.0001313,2]
[327541144,1716201039425,-2000.0,0.00013261,2]
[327541145,1716201039434,-200.0,0.00013261,2]
[327541146,1716201039444,-2000.0,0.00013261,2]
[327541147,1716201039454,-200.0,0.00013261,2]